bitfinex-derivatives/quotes_BNBF0:USTF0_20241225
["timestamp","ask_amount","ask_price","bid_price","bid_amount"]
[1735087813333,0.28624588,698.7,697.21,0.28685761]
[1735087813334,2.16051418,698.04,697.21,0.28685761]
[1735087813534,2.16051418,698.03,697.21,0.28685761]
[1735087813739,2.16187874,698.02,697.21,0.28685761]
[1735087814040,2.16187874,698.01,697.21,0.28685761]
[1735087814241,1.2788291,698.0,697.21,0.28685761]
[1735087814441,2.16189331,697.99,697.21,0.28685761]
[1735087814636,2.16189331,697.98,697.21,0.28685761]
[1735087814837,2.16189331,697.97,697.21,0.28685761]
[1735087815039,2.16189331,697.96,697.21,0.28685761]
[1735087815234,0.28624588,698.7,697.21,0.28685761]
[1735087815435,2.16197021,697.95,697.21,0.28685761]
[1735087815635,2.16201405,697.94,697.21,0.28685761]
[1735087815841,1.27891845,697.93,697.21,0.28685761]
[1735087816144,0.28624588,698.7,697.21,0.28685761]
[1735087816336,2.4253645,698.69,697.21,0.28685761]
[1735087816537,2.4253645,698.68,697.21,0.28685761]
[1735087816737,2.42536422,698.67,697.21,0.28685761]
[1735087816941,2.42536422,698.66,697.21,0.28685761]
[1735087817142,2.42536422,698.65,697.21,0.28685761]
[1735087817336,2.42536422,698.64,697.21,0.28685761]
[1735087817539,2.42536422,698.63,697.21,0.28685761]
[1735087817747,2.42536422,698.62,697.21,0.28685761]
[1735087817941,2.42536422,698.61,697.21,0.28685761]
[1735087818141,2.42536422,698.6,697.21,0.28685761]
[1735087818346,2.42536422,698.59,697.21,0.28685761]
[1735087818547,2.42536422,698.58,697.21,0.28685761]
[1735087818746,2.16199695,698.57,697.21,0.28685761]
[1735087818948,2.42536732,698.56,697.21,0.28685761]
[1735087819145,2.42536732,698.55,697.21,0.28685761]
[1735087819347,2.42536732,698.54,697.21,0.28685761]
[1735087819550,2.42536732,698.53,697.21,0.28685761]
[1735087819846,1.14647456,698.52,697.21,0.28685761]
[1735087820047,0.26337037,698.51,697.21,0.28685761]
[1735087820346,2.16226213,698.5,697.21,0.28685761]
[1735087820648,2.4256325,698.49,697.21,0.28685761]
[1735087820849,2.4256325,698.48,697.21,0.28685761]
[1735087821152,2.16226213,698.47,697.21,0.28685761]
[1735087821349,2.16226213,698.46,697.21,0.28685761]
[1735087821647,2.16226213,698.45,697.21,0.28685761]
[1735087821845,2.16226213,698.44,697.21,0.28685761]
[1735087822047,2.16226213,698.43,697.21,0.28685761]
[1735087822247,2.16226213,698.42,697.21,0.28685761]
[1735087822447,2.16226213,698.41,697.21,0.28685761]
[1735087822643,2.16226213,698.4,697.21,0.28685761]
[1735087822847,1.279149,698.39,697.21,0.28685761]
[1735087823050,2.16243442,698.38,697.21,0.28685761]
[1735087823349,2.16243442,698.37,697.21,0.28685761]
[1735087823543,2.16243442,698.36,697.21,0.28685761]
[1735087823744,2.16243442,698.35,697.21,0.28685761]
[1735087823947,2.16243442,698.34,697.21,0.28685761]
[1735087824149,2.16243442,698.33,697.21,0.28685761]
[1735087824349,2.16243442,698.32,697.21,0.28685761]
[1735087824549,2.16243442,698.31,697.21,0.28685761]
[1735087824747,2.16243442,698.3,697.21,0.28685761]
[1735087824950,2.16243442,698.29,697.21,0.28685761]
[1735087825249,2.16243442,698.28,697.21,0.28685761]
[1735087825450,2.16243442,698.27,697.21,0.28685761]
[1735087825647,2.16243442,698.26,697.21,0.28685761]
[1735087825843,2.16248794,698.25,697.21,0.28685761]
[1735087826049,2.16248794,698.24,697.21,0.28685761]
[1735087826245,2.16248794,698.23,697.21,0.28685761]
[1735087826449,2.16248794,698.22,697.21,0.28685761]
[1735087826644,2.16248794,698.21,697.21,0.28685761]
[1735087826845,2.16248794,698.2,697.21,0.28685761]
[1735087827045,2.16248794,698.19,697.21,0.28685761]
[1735087827246,2.16248794,698.18,697.21,0.28685761]
[1735087827549,2.16248794,698.17,697.21,0.28685761]
[1735087827751,2.16248794,698.16,697.21,0.28685761]
[1735087828051,2.16248794,698.15,697.21,0.28685761]
[1735087828246,2.16248794,698.14,697.21,0.28685761]
[1735087828445,2.16248794,698.13,697.21,0.28685761]
[1735087828653,2.16248794,698.12,697.21,0.28685761]
[1735087828950,2.16253361,698.11,697.21,0.28685761]
[1735087829252,2.16253361,698.1,697.21,0.28685761]
[1735087829550,2.16253361,698.09,697.21,0.28685761]
[1735087829751,2.16253361,698.08,697.21,0.28685761]
[1735087829948,2.16253361,698.07,697.21,0.28685761]
[1735087830148,2.16253361,698.06,697.21,0.28685761]
[1735087830346,2.16253361,698.05,697.21,0.28685761]
[1735087830549,1.27925359,698.04,697.21,0.28685761]
[1735087830747,1.27925359,698.03,697.21,0.28685761]
[1735087830947,0.28624588,698.7,697.21,0.28685761]
[1735087831152,2.16251882,698.69,697.21,0.28685761]
[1735087831347,0.28624588,698.7,697.21,0.28685761]
[1735087831348,2.16251882,698.68,697.21,0.28685761]
[1735087831546,2.16251882,698.67,697.21,0.28685761]
[1735087831749,2.16251882,698.66,697.21,0.28685761]
[1735087832053,2.16247215,698.65,697.21,0.28685761]
[1735087832252,2.16247215,698.64,697.21,0.28685761]
[1735087832447,0.28624588,698.7,697.21,0.28685761]
[1735087832648,0.88328105,698.63,697.21,0.28685761]
[1735087832953,2.16243387,698.62,697.21,0.28685761]
[1735087833148,2.16243387,698.61,697.21,0.28685761]
[1735087833348,2.16243387,698.6,697.21,0.28685761]
[1735087833550,2.16243387,698.59,697.21,0.28685761]
[1735087833748,2.16243387,698.58,697.21,0.28685761]
[1735087833950,2.16243387,698.57,697.21,0.28685761]
[1735087834151,2.16243387,698.56,697.21,0.28685761]
[1735087834354,2.16243387,698.55,697.21,0.28685761]
[1735087834654,2.16243387,698.54,697.21,0.28685761]
[1735087834848,2.16243387,698.53,697.21,0.28685761]
[1735087835053,2.16243387,698.52,697.21,0.28685761]
[1735087835255,2.16243387,698.51,697.21,0.28685761]
[1735087835451,2.16243387,698.5,697.21,0.28685761]
[1735087835655,2.16243387,698.49,697.21,0.28685761]
[1735087835849,2.16243387,698.48,697.21,0.28685761]
[1735087836049,2.16243387,698.47,697.21,0.28685761]
[1735087836253,2.16243387,698.46,697.21,0.28685761]
[1735087836549,2.16243387,698.45,697.21,0.28685761]
[1735087836752,2.16243387,698.44,697.21,0.28685761]
[1735087836953,2.16243387,698.43,697.21,0.28685761]
[1735087837151,0.28624588,698.7,697.21,0.28685761]
[1735087837152,2.16243387,698.42,697.21,0.28685761]
[1735087837354,2.16243387,698.41,697.21,0.28685761]
[1735087837554,2.16243387,698.4,697.21,0.28685761]
[1735087837756,2.16243387,698.39,697.21,0.28685761]
[1735087837956,2.16243387,698.38,697.21,0.28685761]
[1735087838158,2.16244356,698.37,697.21,0.28685761]
[1735087838352,2.16244356,698.36,697.21,0.28685761]
[1735087838554,2.16244356,698.35,697.21,0.28685761]
[1735087838758,0.28624588,698.7,697.21,0.28685761]
[1735087838759,2.16244356,698.34,697.21,0.28685761]
[1735087838957,2.16244356,698.33,697.21,0.28685761]
[1735087839158,2.16244356,698.32,697.21,0.28685761]
[1735087839359,2.16244356,698.31,697.21,0.28685761]
[1735087839558,2.16244356,698.3,697.21,0.28685761]
[1735087839758,2.16244356,698.29,697.21,0.28685761]
[1735087840060,2.16244356,698.28,697.21,0.28685761]
[1735087840359,2.16244356,698.27,697.21,0.28685761]
[1735087840559,2.16244356,698.26,697.21,0.28685761]
[1735087840758,2.16244356,698.25,697.21,0.28685761]
[1735087840959,2.16244356,698.24,697.21,0.28685761]
[1735087841159,2.16244874,698.23,697.21,0.28685761]
[1735087841460,2.16244874,698.22,697.21,0.28685761]
[1735087841662,2.16247608,698.21,697.21,0.28685761]
[1735087841959,2.16247608,698.2,697.21,0.28685761]
[1735087842158,2.16247608,698.19,697.21,0.28685761]
[1735087842361,2.16247608,698.18,697.21,0.28685761]
[1735087842556,2.16247608,698.17,697.21,0.28685761]
[1735087842758,2.16247608,698.16,697.21,0.28685761]
[1735087842957,2.16247608,698.15,697.21,0.28685761]
[1735087843160,2.16247608,698.14,697.21,0.28685761]
[1735087843361,2.16247608,698.13,697.21,0.28685761]
[1735087843664,2.16247608,698.12,697.21,0.28685761]
[1735087843860,2.16247608,698.11,697.21,0.28685761]
[1735087844062,2.16247608,698.1,697.21,0.28685761]
[1735087844361,2.16247608,698.09,697.21,0.28685761]
[1735087844557,2.16247608,698.08,697.21,0.28685761]
[1735087844763,2.16247608,698.07,697.21,0.28685761]
[1735087844961,2.16247608,698.06,697.21,0.28685761]
[1735087845262,1.27916101,698.05,697.21,0.28685761]
[1735087845462,1.27926432,698.04,697.21,0.28685761]
[1735087845663,0.28624588,698.7,697.21,0.28685761]
[1735087845963,2.16262117,698.69,697.21,0.28685761]
[1735087846154,2.16262117,698.68,697.21,0.28685761]
[1735087846356,2.16262117,698.67,697.21,0.28685761]
[1735087846560,2.16262117,698.66,697.21,1.34668753]
[1735087846761,2.16262117,698.65,697.21,1.34668753]
[1735087846958,2.16262117,698.64,697.21,1.34668753]
[1735087847158,2.16262117,698.63,697.21,1.34668753]
[1735087847462,2.16262117,698.62,697.21,0.28685761]
[1735087847663,2.16262117,698.61,697.21,0.28685761]
[1735087847961,2.16262117,698.6,697.21,0.28685761]
[1735087848265,2.16262117,698.59,697.21,0.28685761]
[1735087848465,2.16262117,698.58,697.21,0.28685761]
[1735087848661,2.16262117,698.57,697.21,0.28685761]
[1735087848868,2.16262117,698.56,697.21,0.28685761]
[1735087849061,2.16262117,698.55,697.21,0.28685761]
[1735087849264,2.16262117,698.54,697.21,0.28685761]
[1735087849461,2.16262117,698.53,697.21,0.28685761]
[1735087849666,2.16262117,698.52,697.21,0.28685761]
[1735087849965,2.16262117,698.51,697.21,0.28685761]
[1735087850161,0.88335685,698.5,697.21,0.28685761]
[1735087850367,2.16344786,698.49,697.21,0.28685761]
[1735087850566,2.16344786,698.48,697.21,0.28685761]
[1735087850862,2.16445875,698.47,697.21,0.28685761]
[1735087851062,2.16445875,698.46,697.21,0.28685761]
[1735087851266,2.16445875,698.45,697.21,0.28685761]
[1735087851468,2.16445875,698.44,697.21,0.28685761]
[1735087851667,2.16445875,698.43,697.21,0.28685761]
[1735087851967,2.16445875,698.42,697.21,0.28685761]
[1735087852166,2.16445875,698.41,697.21,0.28685761]
[1735087852367,2.16445875,698.4,697.21,0.28685761]
[1735087852563,2.16445875,698.39,697.21,0.28685761]
[1735087852868,2.16445875,698.38,697.21,0.28685761]
[1735087853168,0.28624588,698.7,697.21,0.28685761]
[1735087853467,2.16511198,698.69,697.21,0.28685761]
[1735087853668,2.16511198,698.68,697.21,0.28685761]
[1735087853868,2.16511198,698.67,697.21,0.28685761]
[1735087854073,2.16511198,698.66,697.21,0.28685761]
[1735087854368,2.16511198,698.65,697.21,0.28685761]
[1735087854565,2.16511198,698.64,697.21,0.28685761]
[1735087854764,2.16511198,698.63,697.21,0.28685761]
[1735087854969,2.16511198,698.62,697.21,0.28685761]
[1735087855173,2.16511198,698.61,697.21,0.28685761]
[1735087855471,2.16511198,698.6,697.21,0.28685761]
[1735087855671,2.16511198,698.59,697.21,0.28685761]
[1735087855869,2.16511198,698.58,697.21,0.28685761]
[1735087856069,2.16511198,698.57,697.21,0.28685761]
[1735087856269,0.88437094,698.56,697.21,0.28685761]
[1735087856469,2.16522475,698.55,697.21,0.28685761]
[1735087856765,2.16522475,698.54,697.21,0.28685761]
[1735087856970,2.16522475,698.53,697.21,0.28685761]
[1735087857170,2.16522475,698.52,697.21,0.28685761]
[1735087857370,2.16522475,698.51,697.21,0.28685761]
[1735087857570,2.16522475,698.5,697.21,0.28685761]
[1735087857774,2.16522475,698.49,697.21,0.28685761]
[1735087857974,2.16522475,698.48,697.21,0.28685761]
[1735087858167,0.28624588,698.7,697.21,0.28685761]
[1735087858168,2.16522475,698.47,697.21,0.28685761]
[1735087858369,2.16522475,698.46,697.21,0.28685761]
[1735087858566,2.16522475,698.45,697.21,0.28685761]
[1735087858771,2.16522475,698.44,697.21,0.28685761]
[1735087858972,2.16522475,698.43,697.25,1.05982992]
[1735087859274,0.28624588,698.7,697.25,1.05982992]
[1735087859476,2.16415712,698.69,697.25,1.05982992]
[1735087859675,1.28017925,698.68,697.27,0.28683293]
[1735087859873,2.16415685,698.67,697.27,0.28683293]
[1735087860073,2.16415685,698.66,697.27,0.28683293]
[1735087860273,2.16415685,698.65,697.27,0.28683293]
[1735087860473,2.16415685,698.64,697.27,0.28683293]
[1735087860671,2.16415685,698.63,697.29,1.05982992]
[1735087860871,2.16415685,698.62,697.29,1.05982992]
[1735087861175,2.16415685,698.61,697.29,1.05982992]
[1735087861378,0.28624588,698.7,697.28,1.05982992]
[1735087861379,0.88396111,698.6,697.28,1.05982992]
[1735087861576,2.16411551,698.59,697.29,0.2868247]
[1735087861777,2.16411551,698.58,697.29,0.2868247]
[1735087861977,2.16411551,698.57,697.29,0.2868247]
[1735087862181,2.16411551,698.56,697.29,0.2868247]
[1735087862377,0.28624588,698.7,697.29,0.2868247]
[1735087862378,2.16411551,698.55,697.29,0.2868247]
[1735087862579,2.16411551,698.54,697.29,0.2868247]
[1735087862781,2.16411551,698.53,697.29,0.2868247]
[1735087862980,2.16411551,698.52,697.29,0.2868247]
[1735087863178,2.16411551,698.51,697.31,1.05982992]
[1735087863378,2.16411551,698.5,697.31,1.05982992]
[1735087863578,2.16411551,698.49,697.31,1.05982992]
[1735087863885,2.16411551,698.48,697.3,1.05982992]
[1735087864082,2.16411551,698.47,697.31,0.28681648]
[1735087864276,1.2801544,698.46,697.31,0.28681648]
[1735087864479,0.88359838,698.45,697.31,0.28681648]
[1735087864685,2.16375278,698.44,697.36,1.05982992]
[1735087864881,2.16375278,698.43,697.36,1.05982992]
[1735087865078,2.16375278,698.42,697.36,1.05982992]
[1735087865277,2.16375278,698.41,697.36,1.05982992]
[1735087865480,2.16375278,698.4,697.36,1.05982992]
[1735087865684,2.16375278,698.39,697.35,1.05982992]
[1735087865879,2.16375278,698.38,697.35,1.05982992]
[1735087866079,2.16375278,698.37,697.35,1.05982992]
[1735087866283,2.16375278,698.36,697.35,1.05982992]
[1735087866586,2.16375278,698.35,697.31,0.28681648]
[1735087866780,2.16375278,698.34,697.31,0.28681648]
[1735087866981,2.16375278,698.33,697.31,0.28681648]
[1735087867181,0.28624588,698.7,697.31,0.28681648]
[1735087867182,2.16375278,698.32,697.31,0.28681648]
[1735087867383,2.16309486,698.31,697.31,0.28681648]
[1735087867584,2.16309486,698.3,697.31,0.28681648]
[1735087867786,2.16309486,698.29,697.31,0.28681648]
[1735087868086,2.16309486,698.28,697.31,0.28681648]
[1735087868287,2.16309486,698.27,697.31,0.28681648]
[1735087868482,2.16309486,698.26,697.31,0.28681648]
[1735087868679,2.16309486,698.25,697.31,0.28681648]
[1735087868887,2.16309486,698.24,697.31,0.28681648]
[1735087869081,2.16309486,698.23,697.31,0.28681648]
[1735087869282,2.16309486,698.22,697.31,0.28681648]
[1735087869484,0.28624588,698.7,697.31,0.28681648]
[1735087869485,2.16309486,698.21,697.31,0.28681648]
[1735087869780,2.16309486,698.2,697.31,0.28681648]
[1735087869983,2.16309486,698.19,697.31,0.28681648]
[1735087870181,2.16309486,698.18,697.31,0.28681648]
[1735087870385,2.16358218,698.17,697.31,0.28681648]
[1735087870681,0.88385713,698.16,697.31,0.28681648]
[1735087870888,2.16384174,698.15,697.31,0.28681648]
[1735087871082,2.16384174,698.14,697.31,0.28681648]
[1735087871290,2.16384174,698.13,697.31,0.28681648]
[1735087871583,2.16384174,698.12,697.31,0.28681648]
[1735087871785,2.16384174,698.11,697.31,0.28681648]
[1735087871985,2.16384174,698.1,697.31,0.28681648]
[1735087872186,2.16384174,698.09,697.31,0.28681648]
[1735087872382,2.16384174,698.08,697.31,0.28681648]
[1735087872586,1.27998461,698.07,697.31,0.28681648]
[1735087872783,1.27998461,698.06,697.31,0.28681648]
[1735087872984,0.28624588,698.7,697.31,0.28681648]
[1735087873185,2.16391625,698.69,697.31,0.28681648]
[1735087873386,2.1639646,698.68,697.31,0.28681648]
[1735087873583,1.28008356,698.67,697.31,0.28681648]
[1735087873787,2.1639646,698.66,697.31,0.28681648]
[1735087873982,2.1639646,698.65,697.31,0.28681648]
[1735087874183,2.1639646,698.64,697.31,0.28681648]
[1735087874388,2.1639646,698.63,697.31,0.28681648]
[1735087874587,2.1639646,698.62,697.31,0.28681648]
[1735087874786,2.1639646,698.61,697.31,0.28681648]
[1735087874994,2.1639646,698.6,697.31,0.28681648]
[1735087875287,2.1639646,698.59,697.31,0.28681648]
[1735087875500,0.28624588,698.7,697.31,0.28681648]
[1735087875793,2.16360645,698.69,697.31,0.28681648]
[1735087876088,2.16360645,698.68,697.31,0.28681648]
[1735087876294,2.16360645,698.67,697.31,0.28681648]
[1735087876594,2.16352487,698.66,697.31,0.28681648]
[1735087876892,2.16352487,698.65,697.31,0.28681648]
[1735087877093,2.16352487,698.64,697.31,0.28681648]
[1735087877293,2.16352487,698.63,697.31,0.28681648]
[1735087877493,2.16352487,698.62,697.31,0.28681648]
[1735087877688,2.16352487,698.61,697.31,0.28681648]
[1735087877888,2.16352487,698.6,697.31,0.28681648]
[1735087878093,2.16352487,698.59,697.31,0.28681648]
[1735087878395,0.28624588,698.7,697.31,0.28681648]
[1735087878396,2.16352487,698.58,697.31,0.28681648]
[1735087878595,2.16352487,698.57,697.31,0.28681648]
[1735087878789,2.16352487,698.56,697.31,0.28681648]
[1735087878989,2.16352487,698.55,697.31,0.28681648]
[1735087879192,0.28624588,698.7,697.31,0.28681648]
[1735087879193,2.16352487,698.54,697.31,0.28681648]
[1735087879495,2.16296491,698.53,697.31,0.28681648]
[1735087879796,2.16299629,698.52,697.31,0.28681648]
[1735087880095,2.16299629,698.51,697.31,0.28681648]
[1735087880395,2.16299629,698.5,697.31,0.28681648]
[1735087880588,0.28624588,698.7,697.31,0.28681648]
[1735087880589,2.16299629,698.49,697.31,0.28681648]
[1735087880788,2.16299629,698.48,697.31,0.28681648]
[1735087880993,2.16299629,698.47,697.31,0.28681648]
[1735087881193,2.16299629,698.46,697.31,0.28681648]
[1735087881392,0.28624588,698.7,697.31,0.28681648]
[1735087881393,1.27949381,698.45,697.31,0.28681648]
[1735087881592,2.1631397,698.44,697.31,0.28681648]
[1735087881794,2.1631397,698.43,697.31,0.28681648]
[1735087881993,2.1631397,698.42,697.31,0.28681648]
[1735087882193,2.1631397,698.41,697.31,0.28681648]
[1735087882398,2.16339363,698.4,697.31,0.28681648]
[1735087882598,2.16339363,698.39,697.31,0.28681648]
[1735087882799,2.16339363,698.38,697.31,0.28681648]
[1735087883097,2.16339363,698.37,697.31,0.28681648]
[1735087883297,2.16339363,698.36,697.31,0.28681648]
[1735087883492,2.16339363,698.35,697.31,0.28681648]
[1735087883692,2.16339363,698.34,697.31,0.28681648]
[1735087883896,2.16339363,698.33,697.31,0.28681648]
[1735087884095,2.16339363,698.32,697.31,0.28681648]
[1735087884392,2.16339363,698.31,697.31,0.28681648]
[1735087884599,2.16339363,698.3,697.31,0.28681648]
[1735087884792,2.16339363,698.29,697.31,0.28681648]
[1735087884999,2.16339363,698.28,697.31,0.28681648]
[1735087885195,2.16339363,698.27,697.31,0.28681648]
[1735087885394,2.16352303,698.26,697.31,0.28681648]
[1735087885598,2.16352303,698.25,697.31,0.28681648]
[1735087885796,2.16352303,698.24,697.31,0.28681648]
[1735087885998,0.28624588,698.7,697.31,0.28681648]
[1735087885999,2.15539946,698.23,697.31,0.28681648]
[1735087886200,1.27974774,698.22,697.31,0.28681648]
[1735087886397,1.27974774,698.21,697.31,0.28681648]
[1735087886595,1.27974774,698.2,697.31,0.28681648]
[1735087886797,1.27974774,698.19,697.31,0.28681648]
[1735087886996,1.27974774,698.18,697.31,0.28681648]
[1735087887199,0.28624588,698.7,697.31,0.28681648]
[1735087887402,1.27995072,698.69,697.31,0.28681648]
[1735087887602,0.28624588,698.7,697.31,0.28681648]
[1735087887603,1.27995072,698.68,697.31,0.28681648]
[1735087887803,1.27995072,698.67,697.31,0.28681648]
[1735087888004,1.27995072,698.66,697.31,0.28681648]
[1735087888205,1.27995072,698.65,697.31,0.28681648]
[1735087888506,1.2800131,698.64,697.31,0.28681648]
[1735087888707,1.2800131,698.63,697.31,0.28681648]
[1735087888908,1.28001447,698.62,697.31,0.28681648]
[1735087889109,1.28001447,698.61,697.31,0.28681648]
[1735087889405,1.28001447,698.6,697.31,0.28681648]
[1735087889610,1.28001447,698.59,697.31,0.28681648]
[1735087889811,1.28001447,698.58,697.31,0.28681648]
[1735087890010,1.28001447,698.57,697.31,0.28681648]
[1735087890211,1.28001447,698.56,697.31,0.28681648]
[1735087890406,1.27998101,698.55,697.31,0.28681648]
[1735087890607,1.27998101,698.54,697.31,0.28681648]
[1735087890807,1.27998101,698.53,697.31,0.28681648]
[1735087891008,1.27998101,698.52,697.31,0.28681648]
[1735087891211,1.27998101,698.51,697.31,0.28681648]
[1735087891406,1.27998101,698.5,697.31,0.28681648]
[1735087891609,1.27997486,698.49,697.31,0.28681648]
[1735087891807,1.27997486,698.48,697.31,0.28681648]
[1735087892110,1.27997486,698.47,697.31,0.28681648]
[1735087892312,1.27997486,698.46,697.31,0.28681648]
[1735087892506,1.27997486,698.45,697.31,0.28681648]
[1735087892714,1.27997486,698.44,697.31,0.28681648]
[1735087892913,1.27997486,698.43,697.31,0.28681648]
[1735087893112,1.27997486,698.42,697.31,0.28681648]
[1735087893312,1.27997486,698.41,697.31,0.28681648]
[1735087893504,1.27997486,698.4,697.31,0.28681648]
[1735087893710,1.27997486,698.39,697.31,0.28681648]
[1735087893910,0.28624588,698.7,697.31,0.28681648]
[1735087893911,1.27997486,698.38,697.31,0.28681648]
[1735087894212,1.27997486,698.37,697.31,0.28681648]
[1735087894408,1.27997486,698.36,697.31,0.28681648]
[1735087894611,1.27997486,698.35,697.31,0.28681648]
[1735087894810,1.27997486,698.34,697.31,0.28681648]
[1735087895010,1.27997486,698.33,697.31,0.28681648]
[1735087895207,1.27997486,698.32,697.31,0.28681648]
[1735087895513,1.27997486,698.31,697.31,0.28681648]
[1735087895813,1.27997486,698.3,697.31,0.28681648]
[1735087896013,1.27997486,698.29,697.31,0.28681648]
[1735087896215,1.27997486,698.28,697.31,0.28681648]
[1735087896513,1.27997486,698.27,697.31,0.28681648]
[1735087896709,1.27997486,698.26,697.31,0.28681648]
[1735087896915,1.27997486,698.25,697.31,0.28681648]
[1735087897117,1.27997486,698.24,697.31,0.28681648]
[1735087897415,0.28624588,698.7,697.31,0.28681648]
[1735087897416,1.27997486,698.23,697.31,0.28681648]
[1735087897716,1.27997486,698.22,697.31,0.28681648]
[1735087897911,0.28624588,698.7,697.31,0.28681648]
[1735087897912,1.27997486,698.21,697.31,0.28681648]
[1735087898116,2.16370087,698.2,697.31,0.28681648]
[1735087898310,2.16370087,698.19,697.31,0.28681648]
[1735087898509,2.16370087,698.18,697.31,0.28681648]
[1735087898711,2.16370087,698.17,697.31,0.28681648]
[1735087898911,2.16370087,698.16,697.31,0.28681648]
[1735087899114,2.16370087,698.15,697.31,0.28681648]
[1735087899407,0.28624588,698.7,697.31,0.28681648]
[1735087899408,2.16370087,698.14,697.31,0.28681648]
[1735087899614,1.27999577,698.13,697.31,0.28681648]
[1735087899915,1.27997021,698.12,697.31,0.28681648]
[1735087900117,0.28624588,698.7,697.31,0.28681648]
[1735087900315,2.16365329,698.69,697.31,0.28681648]
[1735087900515,2.16365329,698.68,697.31,0.28681648]
[1735087900712,2.16365329,698.67,697.31,0.28681648]
[1735087900912,2.16365329,698.66,697.31,0.28681648]
[1735087901115,2.16365329,698.65,697.31,0.28681648]
[1735087901310,2.16365329,698.64,697.31,0.28681648]
[1735087901515,2.16365329,698.63,697.31,0.28681648]
[1735087901717,2.16365329,698.62,697.31,0.28681648]
[1735087901910,2.16365329,698.61,697.31,0.28681648]
[1735087902110,2.16365329,698.6,697.31,0.28681648]
[1735087902316,2.16365329,698.59,697.31,0.28681648]
[1735087902616,2.16365329,698.58,697.31,0.28681648]
[1735087902817,2.16365329,698.57,697.31,0.28681648]
[1735087903017,2.16365329,698.56,697.31,0.28681648]
[1735087903213,2.16365329,698.55,697.31,0.28681648]
[1735087903514,1.27996818,698.54,697.31,0.28681648]
[1735087903720,0.88383765,698.53,697.31,0.28681648]
[1735087904018,2.16400373,698.52,697.31,0.28681648]
[1735087904215,2.16400373,698.51,697.31,0.28681648]
[1735087904415,2.16400373,698.5,697.31,0.28681648]
[1735087904611,0.28624588,698.7,697.31,0.28681648]
[1735087904612,2.16400373,698.49,697.31,0.28681648]
[1735087904817,0.28624588,698.7,697.31,0.28681648]
[1735087904818,2.16400373,698.48,697.31,0.28681648]
[1735087905120,2.16400373,698.47,697.31,0.28681648]
[1735087905418,2.16400373,698.46,697.31,0.28681648]
[1735087905620,2.16400373,698.45,697.31,0.28681648]
[1735087905812,2.16400373,698.44,697.31,0.28681648]
[1735087906012,2.16400373,698.43,697.31,0.28681648]
[1735087906218,2.16400373,698.42,697.31,0.28681648]
[1735087906414,2.16400373,698.41,697.31,0.28681648]
[1735087906618,2.16331096,698.4,697.31,0.28681648]
[1735087906817,2.16331096,698.39,697.31,0.28681648]
[1735087907019,1.27974307,698.38,697.31,0.28681648]
[1735087907219,2.16329039,698.37,697.31,0.28681648]
[1735087907420,2.16329039,698.36,697.31,0.28681648]
[1735087907614,2.16329039,698.35,697.31,0.28681648]
[1735087907814,2.16329039,698.34,697.31,0.28681648]
[1735087908019,2.16329039,698.33,697.31,0.28681648]
[1735087908220,2.16329039,698.32,697.31,0.28681648]
[1735087908419,0.28624588,698.7,697.31,0.28681648]
[1735087908420,2.16329039,698.31,697.31,0.28681648]
[1735087908620,2.16329039,698.3,697.31,0.28681648]
[1735087908821,2.16329039,698.29,697.31,0.28681648]
[1735087909122,2.16329039,698.28,697.31,0.28681648]
[1735087909323,2.16329039,698.27,697.31,0.28681648]
[1735087909623,0.88339974,698.26,697.31,0.28681648]
[1735087909921,2.16292991,698.25,697.31,0.28681648]
[1735087910118,2.16292991,698.24,697.31,0.28681648]
[1735087910424,2.16292991,698.23,697.31,0.28681648]
[1735087910723,2.16292991,698.22,697.31,0.28681648]
[1735087910917,2.16292991,698.21,697.31,0.28681648]
[1735087911121,2.16292991,698.2,697.31,0.28681648]
[1735087911319,2.16292991,698.19,697.31,0.28681648]
[1735087911520,2.16292991,698.18,697.31,0.28681648]
[1735087911718,0.28624588,698.7,697.31,0.28681648]
[1735087911719,2.16292991,698.17,697.31,0.28681648]
[1735087911924,2.16292991,698.16,697.31,0.28681648]
[1735087912124,2.16292991,698.15,697.31,0.28681648]
[1735087912424,0.28624588,698.7,697.31,0.28681648]
[1735087912425,2.16292991,698.14,697.31,0.28681648]
[1735087912624,2.16292991,698.13,697.31,0.28681648]
[1735087912827,0.28624588,698.7,697.31,0.28681648]
[1735087912828,2.16292991,698.12,697.31,0.28681648]
[1735087913121,2.16292991,698.11,697.31,0.28681648]
[1735087913322,2.16292991,698.1,697.31,0.28681648]
[1735087913523,2.16292991,698.09,697.31,0.28681648]
[1735087913722,2.16292991,698.08,697.31,0.28681648]
[1735087913923,2.16292991,698.07,697.31,0.28681648]
[1735087914118,2.16292991,698.06,697.31,0.28681648]
[1735087914318,2.16292991,698.05,697.31,0.28681648]
[1735087914517,2.16292991,698.04,697.31,0.28681648]
[1735087914722,2.16292991,698.03,697.31,0.28681648]
[1735087914924,2.16292991,698.02,697.31,0.28681648]
[1735087915120,2.16292991,698.01,697.31,0.28681648]
[1735087915321,2.16292991,698.0,697.31,0.28681648]
[1735087915628,0.88339974,697.99,697.31,0.28681648]
[1735087915828,2.16218167,697.98,697.31,0.28681648]
[1735087916028,0.88339974,697.97,697.31,0.28681648]
[1735087916230,0.88339974,697.96,697.31,0.28681648]
[1735087916427,0.88339974,697.95,697.31,0.28681648]